[Event "Israel-ch Disabled 2024"]
[Site "Haifa"]
[Date "2024.05.23"]
[Round "4.4"]
[White "Shevchuk, Evgeny"]
[Black "Rozhanski, Yosef"]
[Result "0-1"]
[ECO "E11"]
[WhiteElo "1924"]
[BlackElo "2127"]
[Annotator "RC"]
[PlyCount "132"]
[EventDate "2024.05.20"]
[EventType "swiss"]
[EventCountry "ISR"]
[SourceTitle "playchess.com"]
[Source "ChessBase"]
[SourceQuality "1"]
[TimeControl "1200+10"]

1. d4 {[%emt 0:20:20]} Nf6 {[%emt 0:00:10]} 2. Nf3 {[%emt 0:00:00]} e6 {[%emt 0:00:10]} 3. c4 {[%emt 0:00:00]} Bb4+ {[%emt 0:00:10]} 4. Bd2 {[%emt 0:00:00]} Qe7 {[%emt 0:00:05]} 5. Nc3 {[%emt 0:00:00]} Nc6 {[%emt 0:00:27]} 6. a3 {[%emt 0:00:00]} Bxc3 {[%emt 0:00:03]} 7. Bxc3 {[%emt 0:00:00]} d6 {[%emt 0:00:05]} 8. Qc2 {[%emt 0:00:00]} e5 {[%emt 0:00:12]} 9. dxe5 {[%emt 0:00:00]} Nxe5 {[%emt 0:00:51]} 10. Nxe5 {[%emt 0:00:00]} dxe5 {[%emt 0:00:02]} 11. e4 {[%emt 0:00:00]} O-O {[%emt 0:00:24]} 12. Be2 {[%emt 0:00:00]} c5 {[%emt 0:00:06]} 13. O-O {[%emt 0:00:00]} Nd7 {[%emt 0:00:49]} 14. Bg4 {[%emt 0:00:00]} Nb8 {[%emt 0:00:06]} 15. Bxc8 {[%emt 0:00:00]} Rxc8 {[%emt 0:00:02]} 16. f4 {[%emt 0:00:00]} exf4 {[%emt 0:00:18]} 17. Rxf4 {[%emt 0:00:00]} Nc6 {[%emt 0:00:01]} 18. Qf2 {[%emt 0:00:00]} Rf8 {[%emt 0:01:16]} 19. Qg3 {[%emt 0:00:00]} f6 {[%emt 0:00:03]} 20. Re1 {[%emt 0:00:00]} Ne5 {[%emt 0:01:24]} 21. Bxe5 {[%emt 0:00:00]} Qxe5 {[%emt 0:00:03]} 22. Qf2 {[%emt 0:00:00]} b6 {[%emt 0:04:22]} 23. Rf5 {[%emt 0:00:00]} Qe6 {[%emt 0:00:22]} 24. Rd5 {[%emt 0:00:00]} Rae8 {[%emt 0:00:14]} 25. b3 {[%emt 0:00:10]} Rf7 {[%emt 0:00:20]} 26. Qf4 {[%emt 0:00:54]} Rfe7 {[%emt 0:00:25]} 27. e5 {[%emt 0:01:10]} fxe5 {[%emt 0:00:46]} 28. Qe4 {[%emt 0:00:25]} Qf6 {[%emt 0:03:22]} 29. Rf1 {[%emt 0:00:26]} Qg5 {[%emt 0:00:05]} 30. Rf5 {[%emt 0:00:45]} Qc1+ {[%emt 0:00:19]} 31. Kf2 {[%emt 0:00:00]} Qxa3 {[%emt 0:00:13]} 32. Qe3 {[%emt 0:00:45]} e4 {[%emt 0:00:07]} 33. Rd2 {[%emt 0:00:21]} Qa6 {[%emt 0:00:17]} 34. Rfd5 {[%emt 0:00:09]} Qb7 {[%emt 0:00:16]} 35. Rd6 {[%emt 0:00:17]} Rf7+ {[%emt 0:00:33]} 36. Kg1 {[%emt 0:00:04]} Qe7 {[%emt 0:00:02]} 37. R2d5 {[%emt 0:00:10]} Qf8 {[%emt 0:00:42]} 38. h3 {[%emt 0:00:02]} Rf1+ {[%emt 0:00:29]} 39. Kh2 {[%emt 0:00:01]} Qf4+ {[%emt 0:01:12]} 40. Qxf4 {[%emt 0:00:01]} Rxf4 {[%emt 0:00:01]} 41. Kg3 {[%emt 0:00:01]} e3 {[%emt 0:01:17]} 42. Kxf4 {[%emt 0:00:11]} e2 {[%emt 0:00:03]} 43. Rd1 {[%emt 0:00:03]} exd1=Q {[%emt 0:00:29]} 44. Rxd1 {[%emt 0:00:01]} Kf7 {[%emt 0:00:02]} 45. Rd3 {[%emt 0:00:18]} Re7 {[%emt 0:00:02]} 46. Kf5 {[%emt 0:00:31]} g6+ {[%emt 0:00:06]} 47. Kf4 {[%emt 0:00:06]} h6 {[%emt 0:00:23]} 48. g4 {[%emt 0:00:08]} Ke6 {[%emt 0:00:12]} 49. g5 {[%emt 0:00:33]} Rf7+ {[%emt 0:00:32]} 50. Kg4 {[%emt 0:00:03]} h5+ {[%emt 0:00:01]} 51. Kg3 {[%emt 0:00:03]} Rf5 {[%emt 0:00:04]} 52. h4 {[%emt 0:00:05]} Re5 {[%emt 0:00:02]} 53. Kf4 {[%emt 0:00:10]} Re1 {[%emt 0:00:11]} 54. Kg3 {[%emt 0:00:33]} Ke5 {[%emt 0:00:16]} 55. Kf3 {[%emt 0:00:06]} Rh1 {[%emt 0:01:21]} 56. Kg3 {[%emt 0:00:01]} Rg1+ {[%emt 0:00:07]} 57. Kf3 {[%emt 0:00:04]} Rg4 {[%emt 0:00:09]} 58. Rd7 {[%emt 0:00:08]} Rxh4 {[%emt 0:00:25]} 59. Kg3 {[%emt 0:00:40]} Rg4+ {[%emt 0:00:05]} 60. Kf3 {[%emt 0:00:01]} Rxg5 {[%emt 0:00:05]} 61. Rxa7 {[%emt 0:00:01]} Rf5+ {[%emt 0:00:06]} 62. Kg3 {[%emt 0:00:03]} g5 {[%emt 0:00:04]} 63. Rb7 {[%emt 0:00:12]} Rf6 {[%emt 0:00:01]} 64. Re7+ {[%emt 0:00:02]} Re6 {[%emt 0:00:50]} 65. Rh7 {[%emt 0:00:03]} Kf5 {[%emt 0:00:09]} 66. Rf7+ {[%emt 0:00:22]} Kg6 {[%emt 0:00:03]} 0-1

[Event "Israel-ch Disabled 2024"]
[Site "Haifa"]
[Date "2024.05.23"]
[Round "4.5"]
[White "Aleksandrova, Aleksandra"]
[Black "Akman, Adi"]
[Result "0-1"]
[ECO "B07"]
[WhiteElo "1870"]
[BlackElo "2025"]
[Annotator "NA RC"]
[PlyCount "64"]
[EventDate "2024.05.20"]
[EventType "swiss"]
[EventCountry "ISR"]
[SourceTitle "playchess.com"]
[Source "ChessBase"]
[SourceQuality "1"]
[TimeControl "1200+10"]

1. d4 {[%emt 0:00:03]} Nf6 {[%emt 0:00:01]} 2. Nd2 {[%emt 0:00:01]} d6 {[%emt 0:00:40]} 3. e4 {[%emt 0:00:17]} g6 {[%emt 0:00:06]} 4. c3 {[%emt 0:00:31]} Bg7 {[%emt 0:00:01]} 5. f4 {[%emt 0:00:36]} O-O {[%emt 0:00:11]} 6. Be2 {[%emt 0:00:20]} Nbd7 {[%emt 0:00:36]} 7. g4 {[%emt 0:00:18]} e5 {[%emt 0:00:40]} 8. g5 {[%emt 0:02:19]} Ne8 {[%emt 0:00:06]} 9. Ndf3 {[%emt 0:01:18]} exf4 {[%emt 0:00:15]} 10. h4 {[%emt 0:01:07]} Qe7 {[%emt 0:00:13]} 11. Bd3 {[%emt 0:00:45]} f5 {[%emt 0:00:48]} 12. Qb3+ {[%emt 0:01:09]} Kh8 {[%emt 0:00:08]} 13. h5 {[%emt 0:01:17]} gxh5 {[%emt 0:00:21]} 14. Rxh5 {[%emt 0:02:28]} fxe4 {[%emt 0:00:25]} 15. Bc2 {[%emt 0:00:54]} exf3+ {[%emt 0:01:38]} 16. Kf1 {[%emt 0:00:07]} Ndf6 {[%emt 0:00:28]} 17. gxf6 {[%emt 0:00:29]} Nxf6 {[%emt 0:00:01]} 18. Rh1 {[%emt 0:00:19]} Be6 {[%emt 0:00:46]} 19. c4 {[%emt 0:01:40]} b5 {[%emt 0:01:23]} 20. Qxb5 {[%emt 0:01:54]} Rab8 {[%emt 0:00:03]} 21. Qa4 {[%emt 0:00:17]} d5 {[%emt 0:00:15]} 22. c5 {[%emt 0:00:11]} Ne4 {[%emt 0:00:13]} 23. Rh2 {[%emt 0:01:41]} Bd7 {[%emt 0:02:28]} 24. c6 {[%emt 0:00:32]} Rb4 {[%emt 0:00:28]} 25. Qa3 {[%emt 0:02:06]} Bxc6 {[%emt 0:00:16]} 26. Nxf3 {[%emt 0:00:20]} Ng3+ {[%emt 0:01:45]} 27. Kg2 {[%emt 0:00:44]} Qe2+ {[%emt 0:00:26]} 28. Kh3 {[%emt 0:00:16]} Bd7+ {[%emt 0:00:45]} 29. Kh4 {[%emt 0:00:26]} Qe7+ {[%emt 0:00:59]} 30. Ng5 {[%emt 0:00:17]} h6 {[%emt 0:00:30]} 31. Bxf4 {[%emt 0:00:20]} Rxf4+ {[%emt 0:00:12]} 32. Kxg3 {[%emt 0:00:04]} Qxg5# {[%emt 0:00:03]} 0-1

[Event "Israel-ch Disabled 2024"]
[Site "Haifa"]
[Date "2024.05.23"]
[Round "5.1"]
[White "Zilberman, Yaacov"]
[Black "Gruenfeld, Yehuda"]
[Result "0-1"]
[ECO "D32"]
[WhiteElo "2299"]
[BlackElo "2405"]
[Annotator "TA"]
[PlyCount "70"]
[EventDate "2024.05.20"]
[EventType "swiss"]
[EventCountry "ISR"]
[SourceTitle "playchess.com"]
[Source "ChessBase"]
[SourceQuality "1"]
[TimeControl "1200+10"]

{[%evp 22,70,50,41,36,31,49,18,16,17,24,0,0,0,-8,-4,-9,-6,-3,-75,-83,-79,-77,-132,-132,-105,-94,-105,-93,-318,-207,-259,-29,-45,-11,-14,-10,-13,0,0,0,-762,-753,-765,-765,-661,-573,-563,-553,-6370,-6294]} 1. d4 {[%emt 0:00:05]} Nf6 {[%emt 0:00:01]} 2. Nf3 {[%emt 0:00:12]} e6 {[%emt 0:00:03]} 3. c4 {[%emt 0:00:22]} c5 {[%emt 0:00:04]} 4. e3 {[%emt 0:00:09]} d5 {[%emt 0:00:20]} 5. Nc3 {[%emt 0:00:04]} a6 {[%emt 0:00:09]} 6. cxd5 {[%emt 0:00:07]} exd5 {[%emt 0:00:01]} 7. Be2 {[%emt 0:00:03]} Bd6 {[%emt 0:00:23]} 8. O-O {[%emt 0:00:21]} O-O {[%emt 0:00:02]} 9. dxc5 {[%emt 0:00:13]} Bxc5 {[%emt 0:00:01]} 10. b3 {[%emt 0:00:03]} Nc6 {[%emt 0:00:14]} 11. Bb2 {[%emt 0:00:02]} Bg4 {[%emt 0:00:23]} 12. Rc1 {[%emt 0:01:07][%cal Oc3d5]} Qd6 {[%emt 0:01:22]} 13. h3 {[%emt 0:03:18]} Bh5 {[%emt 0:00:13]} 14. Na4 {[%emt 0:03:58]} Ba3 {[%emt 0:00:03] The position is equal.} 15. Bxa3 {[%emt 0:02:13]} (15. Qc2 {keeps more tension.} Ne4 16. Nd2 Bxb2 17. Nxe4 Qe5 18. Ng5) 15... Qxa3 {[%emt 0:00:02]} 16. Nd4 {[%emt 0:00:31]} Nxd4 {[%emt 0:01:26]} 17. Bxh5 {[%emt 0:00:21]} Ne6 {[%emt 0:00:06]} 18. Bf3 {[%emt 0:00:14]} Rad8 {[%emt 0:00:09][%cal Od5d4]} 19. Qc2 {[%emt 0:00:26]} b5 {[%emt 0:00:43]} 20. Qb2 {[%emt 0:01:16] [#]} (20. Nc5 $11 {remains equal.}) 20... Qe7 $1 $17 {[%emt 0:00:28]} 21. Nc3 {[%emt 0:00:09]} d4 {[%emt 0:00:01]} 22. exd4 {[%emt 0:01:51]} (22. Ne2 $142) 22... Nxd4 {[%emt 0:00:02]} 23. Bd1 {[%emt 0:00:16]} Qe5 {[%emt 0:01:45]} 24. Kh1 {[%emt 0:01:14]} Rfe8 {[%emt 0:01:44] Black is much more active.} 25. Bc2 $2 {[%emt 0:00:57]} (25. b4 $17 {keeps fighting.}) 25... Kh8 {[%emt 0:06:06] ...Ne2 would now be deadly.} 26. Bb1 {[%emt 0:00:43]} h6 $2 {[%emt 0:00:15]} (26... b4 $19 27. Nd1 Nb5 28. Qxe5 Rxe5) 27. b4 $11 {[%emt 0:01:19]} Qf4 {[%emt 0:01:05] ...Nh5 is the strong threat.} 28. Rcd1 {[%emt 0:00:21]} Nc6 {[%emt 0:00:38]} 29. a3 {[%emt 0:00:07]} Rxd1 {[%emt 0:00:10]} 30. Rxd1 {[%emt 0:00:04]} Ne5 $40 {[%emt 0:00:01][%cal Oe5g4][%mdl 128] aiming for ...Neg4! Black is up to no good.} 31. Ba2 $2 {[%emt 0:00:13][%mdl 8192] [#]} (31. Kg1 $11) 31... Neg4 $1 {[%emt 0:01:11][%mdl 512] Black is clearly winning.} 32. hxg4 {[%emt 0:00:23]} Nxg4 {[%emt 0:00:00]} 33. g3 {[%emt 0:00:25]} Nxf2+ {[%emt 0:00:02]} 34. Kg2 {[%emt 0:00:02]} Nxd1 {[%emt 0:00:02]} 35. Nxd1 {[%emt 0:00:07]} Qe4+ {[%emt 0:00:01] Weighted Error Value: White=0.74/Black=0.29 (precise) .  Loses game:     	White=2     	---        Missed win:     	---       	Black=1      Mistake:       	White=2     	---        Inaccurate:     	White=2     	Black=2      OK:         	White=7     	Black=7      Best:        	White=1     	Black=2      Strong:       	---       	Black=1} 0-1

[Event "Israel-ch Disabled 2024"]
[Site "Haifa"]
[Date "2024.05.23"]
[Round "5.2"]
[White "Streltsov, Alexey"]
[Black "Shabtai, Ran"]
[Result "1-0"]
[ECO "B13"]
[WhiteElo "2292"]
[BlackElo "2046"]
[Annotator "RC"]
[PlyCount "69"]
[EventDate "2024.05.20"]
[EventType "swiss"]
[EventCountry "ISR"]
[SourceTitle "playchess.com"]
[Source "ChessBase"]
[SourceQuality "1"]
[TimeControl "1200+10"]

1. d4 {[%emt 0:00:03]} d5 {[%emt 0:00:07]} 2. Bf4 {[%emt 0:00:02]} Nf6 {[%emt 0:00:09]} 3. e3 {[%emt 0:00:02]} c5 {[%emt 0:00:01]} 4. Nc3 {[%emt 0:00:02]} cxd4 {[%emt 0:00:30]} 5. exd4 {[%emt 0:00:01]} a6 {[%emt 0:00:02]} 6. Nf3 {[%emt 0:00:05]} Nc6 {[%emt 0:00:02]} 7. Ne5 {[%emt 0:00:02]} e6 {[%emt 0:01:04]} 8. Nxc6 {[%emt 0:00:09]} bxc6 {[%emt 0:00:02]} 9. Na4 {[%emt 0:00:01]} Bd6 {[%emt 0:00:26]} 10. Bxd6 {[%emt 0:00:14]} Qxd6 {[%emt 0:00:02]} 11. Bd3 {[%emt 0:00:03]} O-O {[%emt 0:01:02]} 12. O-O {[%emt 0:00:17]} e5 {[%emt 0:00:06]} 13. dxe5 {[%emt 0:00:51]} Qxe5 {[%emt 0:00:02]} 14. h3 {[%emt 0:00:02]} Rb8 {[%emt 0:02:08]} 15. b3 {[%emt 0:02:02]} Qd6 {[%emt 0:00:30]} 16. c4 {[%emt 0:00:06]} d4 {[%emt 0:00:06]} 17. c5 {[%emt 0:00:05]} Qf4 {[%emt 0:00:50]} 18. Re1 {[%emt 0:00:33]} a5 {[%emt 0:01:46]} 19. Re7 {[%emt 0:01:34]} Be6 {[%emt 0:00:41]} 20. Nb6 {[%emt 0:02:51]} Nd5 {[%emt 0:02:54]} 21. Nxd5 {[%emt 0:00:04]} Bxd5 {[%emt 0:00:03]} 22. Ra7 {[%emt 0:00:34]} Ra8 {[%emt 0:00:21]} 23. Rxa8 {[%emt 0:00:37]} Rxa8 {[%emt 0:00:02]} 24. Qe2 {[%emt 0:00:12]} g6 {[%emt 0:01:21]} 25. Rd1 {[%emt 0:01:11]} Qg5 {[%emt 0:00:22]} 26. f3 {[%emt 0:00:01]} Be6 {[%emt 0:00:06]} 27. Bc4 {[%emt 0:01:01]} Bxh3 {[%emt 0:00:31]} 28. f4 {[%emt 0:00:04]} Qg4 {[%emt 0:01:33]} 29. Rxd4 {[%emt 0:00:06]} Qxe2 {[%emt 0:00:40]} 30. Bxe2 {[%emt 0:00:00]} Be6 {[%emt 0:00:33]} 31. Bf3 {[%emt 0:00:02]} a4 {[%emt 0:03:09]} 32. Rxa4 {[%emt 0:00:05]} Rxa4 {[%emt 0:00:04]} 33. bxa4 {[%emt 0:00:01]} Bxa2 {[%emt 0:00:02]} 34. Bxc6 {[%emt 0:00:04]} Kf8 {[%emt 0:00:04]} 35. a5 {[%emt 0:10:14]} 1-0

[Event "Israel-ch Disabled 2024"]
[Site "Haifa"]
[Date "2024.05.23"]
[Round "5.3"]
[White "Rozhanski, Yosef"]
[Black "Shapiro, Benny"]
[Result "1-0"]
[ECO "A31"]
[WhiteElo "2127"]
[BlackElo "1896"]
[Annotator "RC"]
[PlyCount "71"]
[EventDate "2024.05.20"]
[EventType "swiss"]
[EventCountry "ISR"]
[SourceTitle "playchess.com"]
[Source "ChessBase"]
[SourceQuality "1"]
[TimeControl "1200+10"]

1. d4 {[%emt 0:00:03]} Nf6 {[%emt 0:00:01]} 2. Nf3 {[%emt 0:00:02]} c5 {[%emt 0:00:02]} 3. c4 {[%emt 0:00:02]} cxd4 {[%emt 0:00:03]} 4. Nxd4 {[%emt 0:00:02]} a6 {[%emt 0:00:06]} 5. Nc3 {[%emt 0:00:03]} e5 {[%emt 0:00:08]} 6. Nc2 {[%emt 0:01:39]} Bc5 {[%emt 0:00:40]} 7. e3 {[%emt 0:01:47]} d6 {[%emt 0:00:30]} 8. Be2 {[%emt 0:00:29]} O-O {[%emt 0:00:13]} 9. O-O {[%emt 0:00:14]} Be6 {[%emt 0:00:18]} 10. b3 {[%emt 0:00:15]} Nc6 {[%emt 0:00:20]} 11. Bf3 {[%emt 0:00:52]} Rc8 {[%emt 0:00:23]} 12. Bb2 {[%emt 0:00:03]} h6 {[%emt 0:00:35]} 13. Qd2 {[%emt 0:00:05]} Qc7 {[%emt 0:00:55]} 14. Rfd1 {[%emt 0:00:14]} Rfd8 {[%emt 0:00:06]} 15. Rac1 {[%emt 0:00:22]} Qb8 {[%emt 0:00:22]} 16. Nd5 {[%emt 0:01:23]} Bxd5 {[%emt 0:00:16]} 17. Bxd5 {[%emt 0:00:04]} Ne7 {[%emt 0:00:24]} 18. Bf3 {[%emt 0:00:09]} d5 {[%emt 0:00:24]} 19. cxd5 {[%emt 0:00:54]} Nexd5 {[%emt 0:00:24]} 20. Qe1 {[%emt 0:00:15]} Bf8 {[%emt 0:01:39]} 21. Be2 {[%emt 0:00:22]} b5 {[%emt 0:00:48]} 22. g3 {[%emt 0:01:36]} g6 {[%emt 0:01:56]} 23. Bf1 {[%emt 0:00:03]} Bg7 {[%emt 0:00:22]} 24. e4 {[%emt 0:00:35]} Ne7 {[%emt 0:00:40]} 25. Bg2 {[%emt 0:01:35]} Nc6 {[%emt 0:00:20]} 26. Ne3 {[%emt 0:01:15]} Nd4 {[%emt 0:00:37]} 27. Rxc8 {[%emt 0:00:50]} Qxc8 {[%emt 0:00:11]} 28. Nd5 {[%emt 0:00:30]} Nxd5 {[%emt 0:00:16]} 29. exd5 {[%emt 0:00:03]} Qc5 {[%emt 0:01:14]} 30. Kh1 {[%emt 0:00:25]} Rxd5 {[%emt 0:00:36]} 31. Ba3 {[%emt 0:01:35]} Qc6 {[%emt 0:00:18]} 32. Qe4 {[%emt 0:00:09]} Qc2 {[%emt 0:01:17]} 33. Qxc2 {[%emt 0:00:48]} Nxc2 {[%emt 0:00:02]} 34. Rxd5 {[%emt 0:00:10]} Nxa3 {[%emt 0:00:02]} 35. Rd6 {[%emt 0:00:02]} a5 {[%emt 0:00:05]} 36. Ra6 {[%emt 0:00:05]} 1-0

[Event "Israel-ch Disabled 2024"]
[Site "Haifa"]
[Date "2024.05.23"]
[Round "5.5"]
[White "Agmon, Yonatan"]
[Black "Gurbanov, Andrei"]
[Result "0-1"]
[ECO "A36"]
[WhiteElo "1807"]
[BlackElo "2296"]
[Annotator "RC"]
[PlyCount "74"]
[EventDate "2024.05.20"]
[EventType "swiss"]
[EventCountry "ISR"]
[SourceTitle "playchess.com"]
[Source "ChessBase"]
[SourceQuality "1"]
[TimeControl "1200+10"]

1. c4 {[%emt 0:20:20]} e6 {[%emt 0:20:20]} 2. e4 {[%emt 0:00:10]} c5 {[%emt 0:00:10]} 3. Nc3 {[%emt 0:00:10]} a6 {[%emt 0:00:10]} 4. g3 {[%emt 0:00:10]} Nc6 {[%emt 0:00:10]} 5. Bg2 {[%emt 0:00:10]} Nf6 {[%emt 0:00:10]} 6. Nge2 {[%emt 0:00:10]} Rb8 {[%emt 0:00:10]} 7. a4 {[%emt 0:00:10]} h5 {[%emt 0:00:10]} 8. d4 {[%emt 0:00:10]} cxd4 {[%emt 0:00:10]} 9. Nxd4 {[%emt 0:00:10]} e5 {[%emt 0:00:10]} 10. Nf5 {[%emt 0:00:10]} d6 {[%emt 0:00:10]} 11. Bg5 {[%emt 0:00:10]} Bxf5 {[%emt 0:00:10]} 12. exf5 {[%emt 0:00:10]} Nd4 13. Qd3 {[%emt 0:00:10]} Be7 {[%emt 0:00:20]} 14. Be3 {[%emt 0:00:10]} Nc6 {[%emt 0:00:10]} 15. h3 {[%emt 0:00:00]} Nb4 16. Qd2 {[%emt 0:00:20]} Qc8 {[%emt 0:00:20]} 17. O-O {[%emt 0:00:10]} Qxc4 {[%emt 0:00:10]} 18. Rac1 {[%emt 0:00:10]} Qd3 {[%emt 0:00:10]} 19. Rfd1 {[%emt 0:00:10]} Qxf5 {[%emt 0:00:10]} 20. Nb5 {[%emt 0:00:10]} axb5 {[%emt 0:00:10]} 21. Qxb4 {[%emt 0:00:10]} bxa4 {[%emt 0:00:10]} 22. Qxa4+ {[%emt 0:00:10]} Qd7 {[%emt 0:00:10]} 23. Qxd7+ {[%emt 0:00:10]} Kxd7 {[%emt 0:00:10]} 24. Ba7 {[%emt 0:00:10]} Ra8 {[%emt 0:00:10]} 25. Bb6 {[%emt 0:00:10]} Bd8 {[%emt 0:00:10]} 26. Bxd8 {[%emt 0:00:10]} Rhxd8 {[%emt 0:00:10]} 27. Bxb7 {[%emt 0:00:10]} Rab8 28. Bc6+ {[%emt 0:00:10]} Ke6 29. Rb1 {[%emt 0:00:10]} Rb4 {[%emt 0:00:30]} 30. Kg2 {[%emt 0:00:10]} h4 {[%emt 0:00:10]} 31. g4 {[%emt 0:00:10]} d5 {[%emt 0:00:10]} 32. b3 {[%emt 0:00:10]} Rd6 {[%emt 0:00:10]} 33. Ba4 {[%emt 0:00:10]} d4 {[%emt 0:00:10]} 34. f3 {[%emt 0:00:10]} Nd5 {[%emt 0:00:10]} 35. Rd2 {[%emt 0:00:10]} Nc3 {[%emt 0:00:10]} 36. Ra1 {[%emt 0:00:10]} g5 {[%emt 0:00:10]} 37. Ra3 {[%emt 0:00:10]} Nb1 {[%emt 0:00:10]} 0-1